fUSD/lending_fUSD_20250826
["ID","MTS","AMOUNT","RATE_DAILY","PERIOD"]
[381474062,1756230638124,-2573848.83786779,0.00018,2]
[381474063,1756230638134,-1000.0,0.00018,2]
[381474064,1756230638147,-2000.0,0.00018,2]
[381474065,1756230638156,-47061.3641552,0.00018,2]
[381474066,1756230638166,-59188.6664868,0.00018,2]
[381474067,1756230638175,-21869.7008026,0.00018,2]
[381474068,1756230638185,-1010.3256214,0.00018,2]
[381474069,1756230638195,-173113.2747763,0.00018,2]
[381474070,1756230638205,-152.8756139,0.00018,2]
[381474071,1756230638214,-204.03224337,0.00018,2]
[381474072,1756230638224,-396.80714952,0.00018006,2]
[381474073,1756230638233,-500.0,0.00018044,2]
[381474074,1756230638243,-500.0,0.00018099,2]
[381474075,1756230638253,-500.0,0.00018154,2]
[381474076,1756230638262,-500.0,0.00018209,2]
[381474077,1756230638272,-1500.0,0.0001826,2]
[381474078,1756230638282,-500.0,0.00018264,2]
[381474079,1756230638292,-337.99337237,0.000183,2]
[381474080,1756230638302,-150.0,0.00018348,2]
[381474081,1756230638311,-1641.0,0.00018359,2]
[381474082,1756230638321,-500.0,0.00018384,2]
[381474083,1756230638331,-13947.90147167,0.000184,2]
[381474084,1756230638341,-150.0,0.00018473,3]
[381474085,1756230638351,-2000.0,0.000185,2]
[381474086,1756230638360,-500.0,0.00018521,2]
[381474087,1756230638369,-1000.0,0.00018521,2]
[381474088,1756230638380,-1434.94597653,0.0001854,2]
[381474089,1756230638389,-469.13,0.00018541,2]
[381474090,1756230638400,-799.32,0.00018541,2]
[381474091,1756230638409,-296.0,0.0001864,2]
[381474092,1756230638419,-16780.55693428,0.00018656,2]
[381474093,1756230638429,-4141.76521397,0.00018656,2]
[381474095,1756230638439,-1000.0,0.00018726,3]
[381474097,1756230638449,-150.0,0.00018726,2]
[381474099,1756230638459,-152.9,0.000188,2]
[381474101,1756230638468,-152.9,0.000188,2]
[381474103,1756230638478,-152.9,0.000188,2]
[381474105,1756230638487,-152.9,0.000188,2]
[381474107,1756230638497,-152.9,0.000188,2]
[381474109,1756230638507,-152.9,0.000188,2]
[381474111,1756230638516,-152.9,0.000188,2]
[381474113,1756230638525,-152.9,0.000188,2]
[381474115,1756230638534,-152.9,0.000188,2]
[381474117,1756230638543,-152.9,0.000188,2]
[381474119,1756230638552,-152.9,0.000188,2]
[381474121,1756230638562,-152.9,0.000188,2]
[381474123,1756230638571,-152.9,0.000188,2]
[381474125,1756230638581,-152.9,0.000188,2]
[381474128,1756230638590,-250.0,0.00018818,2]
[381474131,1756230638600,-3210.8456,0.0001882,2]
[381474133,1756230638609,-2873.1008797,0.000189,3]
[381474137,1756230638619,-361.0,0.00018917,2]
[381474141,1756230638633,-152.9,0.0001899,2]
[381474144,1756230638642,-95227.02192548,0.00019,2]
[381474145,1756230638651,-5065.97553237,0.00019,2]
[381474147,1756230638661,-2407.37789572,0.00019,2]
[381474150,1756230638670,-2407.37789572,0.00019,2]
[381474152,1756230638680,-218.0,0.00019162,2]
[381474154,1756230638690,-151.0,0.00019178,2]
[381474156,1756230638700,-150.0,0.00019178,2]
[381474158,1756230638711,-2611.0,0.00019398,2]
[381474160,1756230638720,-2000.0,0.00019399,2]
[381474162,1756230638730,-16780.55693428,0.00019411,2]
[381474164,1756230638739,-4141.76521397,0.00019411,2]
[381474166,1756230638749,-296.0,0.0001942,2]
[381474168,1756230638758,-733.32410921,0.0001965,2]
[381474170,1756230638767,-150.0,0.00019718,2]
[381474172,1756230638777,-156.587,0.00019726,2]
[381474174,1756230638786,-643.56380302,0.00019779,2]
[381474176,1756230638796,-3210.8456,0.0001982,2]
[381474178,1756230638805,-186.04,0.00019863,2]
[381474180,1756230638815,-1000.0,0.00019892,2]
[381474182,1756230638824,-1778.36316346,0.000199,3]
[381474184,1756230638834,-253.0,0.00019902,2]
[381474186,1756230638843,-253.0,0.00019902,2]
[381474188,1756230638852,-253.0,0.00019902,2]
[381474190,1756230638862,-253.0,0.00019902,2]
[381474192,1756230638871,-253.0,0.00019902,2]
[381474193,1756230638880,-253.0,0.00019902,2]
[381474195,1756230638889,-253.0,0.00019902,2]
[381474197,1756230638899,-253.0,0.00019902,2]
[381474199,1756230638908,-253.0,0.00019902,2]
[381474201,1756230638918,-253.0,0.00019902,2]
[381474204,1756230638930,-253.0,0.00019902,2]
[381474206,1756230638939,-253.0,0.00019902,2]
[381474241,1756230639268,-253.0,0.00019902,2]
[381474243,1756230639278,-253.0,0.00019902,2]
[381474245,1756230639287,-253.0,0.00019902,2]
[381474247,1756230639296,-253.0,0.00019902,2]
[381474249,1756230639305,-253.0,0.00019902,2]
[381474251,1756230639315,-239.0,0.00019909,2]
[381474253,1756230639324,-239.0,0.00019909,2]
[381474254,1756230639333,-239.0,0.00019909,2]
[381474256,1756230639343,-239.0,0.00019909,2]
[381474258,1756230639353,-239.0,0.00019909,2]
[381474260,1756230639363,-239.0,0.00019909,2]
[381474262,1756230639372,-239.0,0.00019909,2]
[381474264,1756230639381,-239.0,0.00019909,2]
[381474266,1756230639393,-239.0,0.00019909,2]
[381474269,1756230639403,-239.0,0.00019909,2]
[381474271,1756230639413,-239.0,0.00019909,2]
[381474272,1756230639424,-239.0,0.00019909,2]
[381474274,1756230639433,-239.0,0.00019909,2]
[381474276,1756230639442,-239.0,0.00019909,2]
[381474278,1756230639452,-239.0,0.00019909,2]
[381474280,1756230639461,-239.0,0.00019909,2]
[381474282,1756230639470,-239.0,0.00019909,2]
[381474284,1756230639479,-239.0,0.00019909,2]
[381474286,1756230639488,-239.0,0.00019909,2]
[381474288,1756230639498,-239.0,0.00019909,2]
[381474290,1756230639509,-239.0,0.00019909,2]
[381474292,1756230639518,-239.0,0.00019909,2]
[381474294,1756230639527,-239.0,0.00019909,2]
[381474296,1756230639536,-239.0,0.00019909,2]
[381474298,1756230639545,-239.0,0.00019909,2]
[381474300,1756230639555,-239.0,0.00019909,2]
[381474302,1756230639564,-239.0,0.00019909,2]
[381474304,1756230639573,-239.0,0.00019909,2]
[381474306,1756230639582,-239.0,0.00019909,2]
[381474308,1756230639591,-153.0,0.00019915,2]
[381474310,1756230639600,-153.0,0.00019915,2]
[381474312,1756230639610,-153.0,0.00019915,2]
[381474314,1756230639619,-153.0,0.00019915,2]
[381474316,1756230639629,-153.0,0.00019915,2]
[381474318,1756230639645,-153.0,0.00019915,2]
[381474320,1756230639654,-153.0,0.00019915,2]
[381474322,1756230639663,-153.0,0.00019915,2]
[381474324,1756230639672,-176.0,0.00019916,2]
[381474326,1756230639682,-176.0,0.00019916,2]
[381474328,1756230639691,-176.0,0.00019916,2]
[381474330,1756230639701,-176.0,0.00019916,2]
[381474332,1756230639711,-176.0,0.00019916,2]
[381474334,1756230639720,-176.0,0.00019916,2]
[381474336,1756230639731,-176.0,0.00019916,2]
[381474338,1756230639740,-176.0,0.00019916,2]
[381474340,1756230639750,-176.0,0.00019916,2]
[381474342,1756230639758,-176.0,0.00019916,2]
[381474344,1756230639768,-176.0,0.00019916,2]
[381474346,1756230639777,-176.0,0.00019916,2]
[381474348,1756230639786,-176.0,0.00019916,2]
[381474350,1756230639795,-153.0,0.00019922,2]
[381474352,1756230639804,-153.0,0.00019922,2]
[381474354,1756230639813,-153.0,0.00019922,2]
[381474356,1756230639822,-153.0,0.00019922,2]
[381474358,1756230639831,-153.0,0.00019922,2]
[381474360,1756230639840,-153.0,0.00019922,2]
[381474362,1756230639849,-153.0,0.00019922,2]
[381474364,1756230639859,-176.0,0.00019923,2]
[381474366,1756230639868,-176.0,0.00019923,2]
[381474367,1756230639877,-176.0,0.00019923,2]
[381474368,1756230639885,-176.0,0.00019923,2]
[381474369,1756230639895,-176.0,0.00019923,2]
[381474370,1756230639904,-176.0,0.00019923,2]
[381474371,1756230639912,-176.0,0.00019923,2]
[381474372,1756230639921,-176.0,0.00019923,2]
[381474373,1756230639931,-176.0,0.00019923,2]
[381474374,1756230639940,-176.0,0.00019923,2]
[381474376,1756230639949,-176.0,0.00019923,2]
[381474378,1756230639959,-176.0,0.00019923,2]
[381474379,1756230639968,-176.0,0.00019923,2]
[381474380,1756230639977,-176.0,0.00019923,2]
[381474381,1756230639986,-176.0,0.00019923,2]
[381474383,1756230639996,-176.0,0.00019923,2]
[381474385,1756230640006,-176.0,0.00019923,2]
[381474386,1756230640015,-176.0,0.00019923,2]
[381474387,1756230640024,-176.0,0.00019923,2]
[381474388,1756230640034,-1018.17579151,0.0002,2]
[381474389,1756230640043,-4000.0,0.0002,4]
[381474390,1756230640052,-152.9,0.00020135,2]
[381474391,1756230640061,-1094.57,0.00020145,2]
[381474392,1756230640071,-8214.8,0.00020145,2]
[381474394,1756230640080,-1177.49,0.00020145,2]
[381474395,1756230640089,-87827.91,0.00020145,2]
[381474397,1756230640099,-150.99,0.00020145,2]
[381474399,1756230640108,-805.73,0.00020145,2]
[381474401,1756230640118,-499.99,0.00020145,2]
[381474404,1756230640127,-6530.16,0.00020145,2]
[381474408,1756230640136,-999.99,0.00020145,2]
[381474411,1756230640147,-16780.55693428,0.00020167,2]
[381474414,1756230640156,-4141.76521397,0.00020167,2]
[381474416,1756230640166,-152.46,0.00020187,2]
[381474418,1756230640175,-151.74,0.00020187,2]
[381474420,1756230640185,-151.3,0.00020187,2]
[381474422,1756230640195,-150.02,0.00020187,2]
[381474424,1756230640205,-150.23,0.00020187,2]
[381474426,1756230640215,-226.8,0.00020187,2]
[381474428,1756230640224,-296.0,0.0002021,2]
[381474430,1756230640234,-256.0010944,0.00020274,2]
[381474432,1756230640243,-152.9,0.00020317,2]
[381474434,1756230640252,-10500.8097207,0.00020327,2]
[381474436,1756230640262,-13206.7766321,0.00020327,2]
[381474438,1756230640272,-4879.7898424,0.00020327,2]
[381474440,1756230640281,-38626.7927246,0.00020327,2]
[381474442,1756230640291,-189.41,0.00020422,2]
[381474444,1756230640301,-186.06,0.00020548,2]
[381474446,1756230640310,-3210.8456,0.0002082,2]
[381474448,1756230640319,-2343.0473546,0.00020846,2]
[381474450,1756230640329,-2946.8301849,0.00020846,2]
[381474452,1756230640338,-1088.828289,0.00020846,2]
[381474454,1756230640347,-8618.8024466,0.00020846,2]
[381474455,1756230640357,-16780.55693428,0.00020922,2]
[381474457,1756230640366,-4141.76521397,0.00020922,2]
[381474459,1756230640376,-152.39,0.0002096,2]
[381474461,1756230640385,-150.82,0.0002096,2]
[381474463,1756230640394,-152.86,0.0002096,2]
[381474465,1756230640404,-152.21,0.0002096,2]
[381474467,1756230640413,-150.55,0.0002096,2]
[381474469,1756230640424,-458.7662338,0.0002096,2]
[381474471,1756230640433,-160.0,0.0002096,2]
[381474473,1756230640443,-152.9,0.0002099,2]
[381474475,1756230640452,-296.0,0.00021,2]
[381474477,1756230640461,-110726.66329259,0.00021,2]
[381474479,1756230640470,-1690.60435138,0.00021,2]
[381474481,1756230640479,-160.0,0.00021099,2]
[381474483,1756230640489,-844.63891918,0.00021099,2]
[381474485,1756230640498,-212.18043798,0.000211,2]
[381474487,1756230640507,-417.0,0.000211,2]
[381474489,1756230640516,-16378.19252763,0.00021111,2]
[381474491,1756230640526,-733.32410921,0.000214,2]
[381474493,1756230640536,-217.58035609,0.000215,2]
[381474495,1756230640546,-600.0,0.00021616,2]
[381474497,1756230640555,-389.06,0.00021635,2]
[381474499,1756230640564,-643.56380302,0.00021659,2]
[381474501,1756230640574,-16780.55693428,0.00021678,2]
[381474503,1756230640583,-4141.76521397,0.00021678,2]
[381474505,1756230640592,-296.0,0.0002179,2]
[381474507,1756230640602,-3210.8456,0.0002182,2]
[381474509,1756230640615,-2000.0,0.00021899,2]
[381474511,1756230640624,-2800.0,0.000219,7]
[381474513,1756230640636,-5000.0,0.00021918,2]
[381474516,1756230640649,-520.53136261,0.00021918,2]
[381474518,1756230640658,-500.0,0.00021973,2]
[381474520,1756230640667,-500.0,0.00021973,2]
[381474522,1756230640677,-500.0,0.00021973,2]
[381474524,1756230640686,-500.0,0.00021973,2]
[381474526,1756230640695,-500.3571981,0.00021973,2]
[381474528,1756230640705,-151.18306465,0.00021973,2]
[381474530,1756230640716,-500.0,0.00021973,2]
[381474531,1756230640726,-500.0,0.00021973,2]
[381474533,1756230640735,-206.0,0.00021986,3]
[381474535,1756230640744,-152.9,0.0002199,2]
[381474537,1756230640753,-152.9,0.0002199,2]
[381474539,1756230640762,-152.9,0.0002199,2]
[381474541,1756230640772,-361090.07297101,0.00022,4]
[381474543,1756230640781,-4062.40268937,0.00022,2]
[381474545,1756230640790,-160.97,0.00022,2]
[381474547,1756230640799,-67349.88,0.00022,7]
[381474549,1756230640809,-1305.73,0.00022,7]
[381474551,1756230640818,-4933.39,0.00022,7]
[381474553,1756230640827,-30372.91,0.00022,2]
[381474555,1756230640836,-212.18043798,0.00022,7]
[381474557,1756230640845,-458.7662338,0.00022,7]
[381474559,1756230640854,-4000.0,0.00022,4]
[381474561,1756230640863,-926.0,0.00022023,2]
[381474563,1756230640872,-2031.0,0.00022023,2]
[381474565,1756230640881,-1298.0,0.00022023,2]
[381474567,1756230640891,-1658.0,0.00022023,2]
[381474569,1756230640902,-566.0,0.00022023,2]
[381474571,1756230640911,-599.0,0.00022023,2]
[381474573,1756230640920,-4155.0,0.00022023,2]
[381474575,1756230640930,-6146.0,0.00022023,2]
[381474577,1756230640939,-2192.777,0.00022023,2]
[381474579,1756230640948,-367.047,0.00022023,2]
[381474581,1756230640958,-484.4152107,0.000221,2]
[381474583,1756230640967,-1000.0,0.00022103,2]
[381474585,1756230640977,-235.4057461,0.0002211,2]
[381474587,1756230640986,-600.0,0.00022164,2]
[381474589,1756230640996,-1181.34,0.00022345,2]
[381474590,1756230641006,-152.9,0.00022423,2]
[381474591,1756230641015,-16780.55693428,0.00022433,2]
[381474592,1756230641024,-4141.76521397,0.00022433,2]
[381474593,1756230641033,-34761.06146262,0.000225,2]
[381474594,1756230641043,-1000.0,0.00022521,2]
[381474595,1756230641053,-1000.0,0.00022521,2]
[381474596,1756230641062,-1000.0,0.00022521,2]
[381474597,1756230641071,-1000.0,0.00022521,2]
[381474598,1756230641081,-1000.0,0.00022521,2]
[381474599,1756230641091,-1000.0,0.00022521,2]
[381474600,1756230641101,-190.39,0.00022542,2]
[381474601,1756230641111,-296.0,0.0002257,2]
[381474602,1756230641120,-186.04,0.00022603,2]
[381474603,1756230641130,-1800.0,0.00022637,2]
[381474604,1756230641139,-3000.0,0.00022637,2]
[381474605,1756230641151,-183.9989545,0.000227,4]
[381474606,1756230641160,-512.28848926,0.0002271,2]
[381474607,1756230641170,-600.0,0.00022712,2]
[381474608,1756230641180,-204.83716545,0.00022735,2]
[381474609,1756230641190,-79999.99999904,0.000228,7]
[381474610,1756230641199,-458.7662338,0.000228,7]
[381474611,1756230641209,-3210.8456,0.0002282,2]
[381474612,1756230641218,-152.9,0.0002299,2]
[381474613,1756230641227,-67349.88,0.00023,7]
[381474614,1756230641238,-2169.55,0.00023,2]
[381474615,1756230641248,-2843.29957411,0.00023013,2]
[381474616,1756230641257,-1500.0,0.00023068,2]
[381474617,1756230641267,-810.18600903,0.00023068,2]
[381474618,1756230641277,-1500.0,0.00023068,2]
[381474619,1756230641286,-1500.0,0.00023068,2]
[381474620,1756230641296,-417.10743411,0.00023068,2]
[381474621,1756230641305,-284.05329204,0.00023068,2]
[381474622,1756230641315,-4691.82101289,0.00023078,2]
[381474623,1756230641324,-200.0,0.000231,7]
[381474624,1756230641334,-16586.0,0.000231,2]
[381474625,1756230641343,-1305.73,0.000231,7]
[381474626,1756230641353,-30372.91,0.000231,2]
[381474627,1756230641362,-733.32410921,0.0002315,2]
[381474628,1756230641372,-16780.55693428,0.00023189,2]
[381474629,1756230641382,-4141.76521397,0.00023189,2]
[381474630,1756230641391,-152.9,0.0002319,2]
[381474631,1756230641402,-4933.39,0.000232,7]
[381474632,1756230641412,-600.0,0.0002326,2]
[381474633,1756230641423,-389.06,0.0002327,2]
[381474634,1756230641433,-167.01,0.00023321,2]
[381474635,1756230641443,-296.0,0.0002336,2]
[381474636,1756230641453,-500.0,0.00023443,2]
[381474637,1756230641463,-5510.0,0.000235,3]
[381474638,1756230641473,-844.63891918,0.000235,3]
[381474639,1756230641483,-212.18043798,0.000235,3]
[381474640,1756230641494,-458.7662338,0.000235,3]
[381474641,1756230641504,-160.0,0.000235,3]
[381474642,1756230641515,-200.0,0.0002351,7]
[381474643,1756230641524,-643.56380302,0.00023538,2]
[381474644,1756230641534,-500.0,0.00023579,2]
[381474645,1756230641543,-150.48,0.00023615,2]
[381474646,1756230641553,-2000.0,0.00023616,2]
[381474647,1756230641562,-748.05959402,0.00023616,2]
[381474648,1756230641571,-2000.0,0.00023616,2]
[381474649,1756230641581,-275.53,0.00023726,2]
[381474650,1756230641590,-1800.0,0.00023733,2]
[381474651,1756230641599,-3000.0,0.00023733,2]
[381474652,1756230641608,-1181.34,0.00023779,2]
[381474653,1756230641618,-600.0,0.00023808,2]
[381474654,1756230641627,-5510.0,0.000239,5]
[381474655,1756230641638,-500.0,0.00023944,2]
[381474656,1756230641649,-500.0,0.00023944,2]
[381474657,1756230641659,-16780.55693428,0.00023944,2]
[381474658,1756230641668,-4141.76521397,0.00023944,2]
[381474659,1756230641679,-152.9,0.0002399,2]
[381474660,1756230641688,-152.9,0.0002399,2]
[381474661,1756230641697,-1000.0,0.00023991,2]
[381474662,1756230641707,-144829.94723162,0.00024,2]
[381474663,1756230641718,-844.63891918,0.00024,7]
[381474664,1756230641728,-67349.88,0.00024,7]
[381474665,1756230641738,-1305.73,0.00024,7]
[381474666,1756230641747,-30372.91,0.00024,2]
[381474667,1756230641757,-160.0,0.00024,7]
[381474668,1756230641767,-4000.0,0.00024,4]
[381474669,1756230641776,-641.19074706,0.00024039,2]
[381474670,1756230641786,-500.0,0.00024039,2]
[381474671,1756230641796,-500.0,0.00024039,2]
[381474672,1756230641805,-200.0,0.000241,7]
[381474673,1756230641814,-500.0,0.00024105,2]
[381474674,1756230641823,-500.0,0.00024105,2]
[381474675,1756230641833,-500.0,0.00024105,2]
[381474676,1756230641843,-1000.0,0.00024127,2]
[381474677,1756230641852,-296.0,0.0002415,2]
[381474678,1756230641861,-852.9675257,0.00024164,2]
[381474679,1756230641871,-914.2821876,0.00024164,2]
[381474680,1756230641880,-4933.39,0.000242,7]
[381474681,1756230641890,-153.0,0.0002421,2]
[381474682,1756230641899,-153.0,0.0002421,2]
[381474683,1756230641908,-153.0,0.0002421,2]
[381474684,1756230641918,-153.0,0.0002421,2]
[381474685,1756230641927,-153.0,0.0002421,2]
[381474686,1756230641936,-153.0,0.0002421,2]
[381474687,1756230641945,-153.0,0.0002421,2]
[381474688,1756230641955,-153.0,0.0002421,2]
[381474689,1756230641964,-165.0,0.00024216,2]
[381474690,1756230641973,-165.0,0.00024216,2]
[381474691,1756230641982,-165.0,0.00024216,2]
[381474692,1756230641991,-165.0,0.00024216,2]
[381474693,1756230642000,-165.0,0.00024216,2]
[381474694,1756230642010,-165.0,0.00024216,2]
[381474695,1756230642019,-165.0,0.00024216,2]
[381474696,1756230642029,-165.0,0.00024216,2]
[381474697,1756230642038,-165.0,0.00024216,2]
[381474698,1756230642047,-165.0,0.00024216,2]
[381474699,1756230642056,-165.0,0.00024216,2]
[381474700,1756230642065,-165.0,0.00024216,2]
[381474701,1756230642074,-165.0,0.00024216,2]
[381474702,1756230642084,-165.0,0.00024216,2]
[381474703,1756230642093,-153.0,0.00024238,2]
[381474704,1756230642101,-153.0,0.00024238,2]
[381474705,1756230642110,-153.0,0.00024238,2]
[381474706,1756230642119,-153.0,0.00024238,2]
[381474707,1756230642128,-165.0,0.00024243,2]
[381474708,1756230642137,-165.0,0.00024243,2]
[381474709,1756230642148,-165.0,0.00024243,2]
[381474710,1756230642157,-165.0,0.00024243,2]
[381474711,1756230642167,-165.0,0.00024243,2]
[381474712,1756230642176,-165.0,0.00024243,2]
[381474713,1756230642185,-165.0,0.00024243,2]
[381474714,1756230642194,-165.0,0.00024243,2]
[381474715,1756230642204,-153.0,0.00024267,2]
[381474716,1756230642213,-153.0,0.00024287,2]
[381474717,1756230642223,-153.0,0.00024287,2]
[381474718,1756230642232,-153.0,0.00024287,2]
[381474719,1756230642241,-153.0,0.00024287,2]
[381474720,1756230642250,-153.0,0.00024287,2]
[381474721,1756230642259,-153.0,0.00024287,2]
[381474722,1756230642269,-153.0,0.00024287,2]
[381474723,1756230642278,-153.0,0.00024287,2]
[381474724,1756230642287,-153.0,0.00024287,2]
[381474725,1756230642297,-153.0,0.00024287,2]
[381474726,1756230642307,-153.0,0.00024287,2]
[381474727,1756230642316,-153.0,0.00024287,2]
[381474728,1756230642326,-153.0,0.00024287,2]
[381474729,1756230642335,-153.0,0.00024287,2]
[381474730,1756230642344,-153.0,0.00024287,2]
[381474731,1756230642353,-1000.0,0.00024313,2]
[381474732,1756230642362,-600.0,0.00024356,2]
[381474733,1756230642371,-310.8,0.00024399,2]
[381474734,1756230642380,-1000.0,0.00024492,2]
[381474735,1756230642390,-502.88809515,0.00024492,2]
[381474736,1756230642400,-1500.0,0.00024539,2]
[381474737,1756230642409,-168.0,0.00024547,2]
[381474738,1756230642419,-168.0,0.0002458,2]
[381474739,1756230642428,-1000.0,0.00024587,2]
[381474740,1756230642437,-1000.0,0.00024587,2]
[381474741,1756230642446,-275.53,0.00024616,2]
[381474742,1756230642456,-2238.0,0.0002463,2]
[381474743,1756230642466,-1000.0,0.00024653,2]
[381474744,1756230642475,-1000.0,0.00024653,2]
[381474745,1756230642485,-1000.0,0.00024653,2]
[381474746,1756230642494,-242.09,0.00024654,2]
[381474747,1756230642503,-1000.0,0.00024658,2]
[381474748,1756230642512,-1500.0,0.00024674,2]
[381474749,1756230642522,-168.0,0.00024687,2]
[381474750,1756230642531,-222.39487225,0.000247,2]
[381474751,1756230642541,-16780.55693428,0.000247,2]
[381474752,1756230642550,-4141.76521397,0.000247,2]
[381474753,1756230642560,-7341.52731202,0.000247,4]
[381474754,1756230642569,-7341.52731202,0.000247,4]
[381474755,1756230642579,-7341.52731202,0.000247,4]
[381474756,1756230642588,-7341.52731202,0.000247,4]
[381474757,1756230642598,-7341.52731202,0.000247,4]
[381474758,1756230642608,-7341.52731202,0.000247,4]
[381474759,1756230642618,-7341.52731202,0.000247,4]
[381474760,1756230642629,-7341.52731202,0.000247,4]
[381474761,1756230642649,-7341.52731202,0.000247,4]
[381474762,1756230642668,-7341.52731202,0.000247,4]
[381474763,1756230642681,-6088.06826466,0.000247,4]
[381474764,1756230642691,-6088.06826466,0.000247,4]
[381474765,1756230642702,-6088.06826466,0.000247,4]
[381474766,1756230642712,-6088.06826466,0.000247,4]
[381474767,1756230642724,-6088.06826466,0.000247,4]
[381474768,1756230642735,-6088.06826466,0.000247,4]
[381474769,1756230642744,-6088.06826466,0.000247,4]
[381474770,1756230642754,-6088.06826466,0.000247,4]
[381474771,1756230642765,-6088.06826466,0.000247,4]
[381474772,1756230642775,-6088.06826466,0.000247,4]
[381474773,1756230642784,-6419.15269785,0.000247,4]
[381474774,1756230642792,-6419.15269785,0.000247,4]
[381474775,1756230642802,-6419.15269785,0.000247,4]
[381474776,1756230642811,-6419.15269785,0.000247,4]
[381474777,1756230642820,-6419.15269785,0.000247,4]
[381474778,1756230642830,-6419.15269785,0.000247,4]
[381474779,1756230642839,-6419.15269785,0.000247,4]
[381474780,1756230642849,-6419.15269785,0.000247,4]
[381474781,1756230642859,-6419.15269785,0.000247,4]
[381474782,1756230642868,-6419.15269785,0.000247,4]
[381474783,1756230642881,-500.0,0.00024773,2]
[381474784,1756230642892,-151.0,0.000248,7]
[381474785,1756230642903,-151.0,0.000248,7]
[381474787,1756230642912,-151.0,0.000248,7]
[381474788,1756230642922,-151.0,0.000248,7]
[381474789,1756230642931,-151.0,0.000248,7]
[381474790,1756230642940,-151.0,0.000248,7]
[381474791,1756230642950,-151.0,0.000248,7]
[381474792,1756230642959,-151.0,0.000248,7]
[381474793,1756230642968,-151.0,0.000248,7]
[381474794,1756230642977,-151.0,0.000248,7]
[381474795,1756230642986,-271.702423,0.000248,7]
[381474796,1756230642995,-151.0,0.000248,7]
[381474797,1756230643005,-151.0,0.000248,7]
[381474798,1756230643015,-151.0,0.000248,7]
[381474799,1756230643024,-151.0,0.000248,7]
[381474801,1756230643033,-151.0,0.000248,7]
[381474803,1756230643042,-151.0,0.000248,7]
[381474804,1756230643052,-151.0,0.000248,7]
[381474806,1756230643062,-259.101129,0.000248,7]
[381474808,1756230643071,-151.184429,0.000248,7]
[381474810,1756230643080,-151.0,0.000248,7]
[381474811,1756230643090,-151.0,0.000248,7]
[381474813,1756230643099,-151.0,0.000248,7]
[381474814,1756230643109,-281.114838,0.000248,7]
[381474816,1756230643119,-151.0,0.000248,7]
[381474818,1756230643128,-151.0,0.000248,7]
[381474819,1756230643138,-151.0,0.000248,7]
[381474821,1756230643150,-151.0,0.000248,7]
[381474822,1756230643159,-151.0,0.000248,7]
[381474824,1756230643169,-151.0,0.000248,7]
[381474825,1756230643178,-171.989765,0.000248,7]
[381474827,1756230643188,-151.0,0.000248,7]
[381474828,1756230643198,-171.989765,0.000248,7]
[381474830,1756230643208,-151.0,0.000248,7]
[381474832,1756230643218,-218.70818,0.000248,7]
[381474833,1756230643228,-218.70818,0.000248,7]
[381474835,1756230643238,-171.989765,0.000248,7]
[381474837,1756230643247,-151.0,0.000248,7]